Cogmind - Beta 12 X6 @@@ ROGUE MODE // 2023.02.24 @ 19:46:14 Player: ArabianSandBoa Result: Destroyed by D-53 Grenadier with Mini Grenade Launcher Performance ------------- Evolutions (0) 0 Regions Visited (2) 400 Robots Destroyed (28) 140 Value Destroyed (679) 679 Prototype IDs (0) 0 Alien Tech Used (0) 0 Bonus (0) 0 TOTAL SCORE: 1219 Bonus ------- None Cogmind --------- Core Integrity 0/250 Matter 283/300 Energy 160/160 System Corruption 0% Temperature Cool (0) Movement Rolling (145) Ox3 Location -10/Mines Parts ------- > --- POWER (1) -------- Light Nuclear Core > --- PROPULSION (2) --- Compact Wheel > --- UTILITY (2) ------ High-capacity Storage Unit Light Armor Plating > --- WEAPON (2) ------- Beam Cannon Light Cannon > --- INVENTORY (20) --- Ion Engine Light Ion Engine Light Treads Light Treads Wheel Wheel Heat Sink Improved Heat Sink Medium Storage Unit High-capacity Storage Unit Signal Interpreter Transport Network Coupler Targeting Computer Improved Utility Shielding Light Armor Plating Light Armor Plating Light Armor Plating Light Armor Plating Peak State ------------ > --- POWER ------------ Light Nuclear Core > --- PROPULSION ------- Compact Wheel Compact Wheel > --- UTILITY ---------- Heat Sink High-capacity Storage Unit > --- WEAPON ----------- Medium Laser Beam Cannon > --- INVENTORY -------- Ion Engine Ion Engine Light Ion Engine Light Treads Light Treads Wheel Wheel Improved Heat Sink Medium Storage Unit High-capacity Storage Unit Signal Interpreter Transport Network Coupler Light Armor Plating Light Armor Plating Light Armor Plating Light Armor Plating Light Armor Plating Light Cannon [Rating: 11] Favorites ----------- Power Light Ion Engine Engine Light Ion Engine Power Core Light Nuclear Core Propulsion Compact Wheel Treads Light Treads Leg Aluminum Leg Wheel Compact Wheel Utility Medium Storage Unit Device Heat Sink Storage Medium Storage Unit Protection Light Armor Plating Weapon Medium Laser Energy Gun Medium Laser Energy Cannon Beam Cannon Ballistic Gun Light Assault Rifle Ballistic Cannon Light Cannon Special Weapon Welding Torch Build | -11 -10 -10 ------- Run | Jun Mat Min Slots Evolved . | . . . Power . | . . . Propulsion . | . . . Utility . | . . . Weapon . | . . . Parts Attached 23 | . 21 2 Power 3 | . 3 . Engine 2 | . 2 . Core 1 | . 1 . Reactor . | . . . Propulsion 6 | . 6 . Treads 2 | . 2 . Leg . | . . . Wheel 4 | . 4 . Hover . | . . . Flight . | . . . Utility 8 | . 7 1 Device 2 | . 2 . Storage 4 | . 4 . Processor . | . . . Hackware . | . . . Protection 2 | . 1 1 Artifact . | . . . Weapon 6 | . 5 1 Energy Gun 3 | . 3 . Energy Cannon 1 | . 1 . Ballistic Gun . | . . . Ballistic Cannon 1 | . . 1 Launcher . | . . . Special Weapon 1 | . 1 . Impact Weapon . | . . . Slashing Weapon . | . . . Piercing Weapon . | . . . Special Melee Weapon . | . . . Unidentified Prototypes . | . . . Parts Lost 7 | . 5 2 Power 1 | . 1 . Propulsion 2 | . 1 1 Utility 1 | . 1 . Weapon 3 | . 2 1 Highest Loss Streak 3 | . 3 1 To Critical Strikes . | . . . Average Slot Usage (%) 96 | . 95 99 Engine 8 | . 9 . Core 4 | . 2 14 Treads 4 | . 5 . Leg 11 | . 13 . Wheel 11 | . 9 27 Device 8 | . 9 5 Storage 15 | . 15 14 Protection 1 | . . 8 Energy Gun 14 | . 15 3 Energy Cannon 6 | . 4 14 Ballistic Gun 5 | . 6 . Ballistic Cannon 1 | . . 10 Naked Turns . | . . . Heaviest Build 54 | 11 51 54 Greatest Support 40 | 20 40 32 Greatest Overweight (x) 3 | . 1 3 Average Overweight (x) . | . . 1 Largest Inventory Capacity 20 | . 20 20 Average Capacity 13 | . 12 20 Most Carried 20 | . 20 18 Average Carried 12 | . 11 17 Final Capacity 20 | 8 20 20 Final Carried 18 | 6 18 18 Class Distribution -------------------- 100% | Mutant Dominant Class ---------------- Mutant | -10/Materials Mutant | -10/Mines Resources | -11 -10 -10 ----------- Run | Jun Mat Min Matter Collected 448 | 200 221 27 Remotely . | . . . Salvage Created 1070 | . 1023 47 Parts 52 | . 47 5 Haulers Intercepted 2 | . 2 . Recyclers Shooed 1 | . 1 . Parts Field Recycled . | . . . Retrieved Matter . | . . . Parts Self-Destructed . | . . . Prevented . | . . . Kills | -11 -10 -10 ------- Run | Jun Mat Min Combat Hostiles Destroyed 20 | . 16 4 Guns 14 | . 14 . Cannons 6 | . 2 4 Classes Destroyed 7 | . 5 2 Worker 2 | . 2 . Hauler 2 | . 2 . Recycler 2 | . 2 . Watcher 3 | . 3 . Swarmer 3 | . . 3 Grunt 16 | . 16 . Assembled 1 | . . 1 Best Kill Streak 4 | . 4 3 Combat Bots Only 3 | . 2 3 Max Kills in Single Turn 1 | . 1 1 Gunslinging . | . . . Exploded . | . . . Melee . | . . . Uniques/NPCs Destroyed . | . . . Combat | -11 -10 -10 -------- Run | Jun Mat Min Damage Taken 1295 | . 966 329 Core 274 | . 150 124 Absorbed by Shields . | . . . Core Remaining (%) 100 | 100 . . Volleys Fired 104 | . 95 9 Largest 2 | . 2 2 Hottest 110 | . 110 110 Shots Fired 196 | . 178 18 Gun 170 | . 167 3 Cannon 24 | . 9 15 Launcher . | . . . Special 2 | . 2 . Kinetic 64 | . 58 6 Thermal 132 | . 120 12 Explosive . | . . . Electromagnetic . | . . . Robot Hit Streak 7 | . 7 5 Robot Miss Streak 3 | . 3 2 Penetration Max . | . . . Secondary Targets . | . . . Shots Hit Robots 132 | . 122 10 Core Hits 57 | . 51 6 Critical Kills . | . . . Critical Parts Destroyed 1 | . 1 . Critical Strikes 5 | . 5 . Burn 4 | . 4 . Destroy 1 | . 1 . Melee Attacks . | . . . Impact . | . . . Slashing . | . . . Piercing . | . . . Sneak Attacks . | . . . Combat Hostiles . | . . . Follow-up Attacks . | . . . Damage Inflicted 1604 | . 1435 169 Guns 1310 | . 1283 27 Cannons 268 | . 126 142 Explosions . | . . . Melee . | . . . Ramming 26 | . 26 . Kinetic 433 | . 364 69 Thermal 1145 | . 1045 100 Explosive . | . . . Electromagnetic . | . . . Impact . | . . . Slashing . | . . . Piercing . | . . . Highest Corruption . | . . . Average Corruption . | . . . Corruption Purged . | . . . Corruption Blocked . | . . . Overload Shots . | . . . Overflow Damage . | . . . Projectiles . | . . . Explosions . | . . . Melee . | . . . Knockbacks 1 | . . 1 Impact . | . . . Kinetic 1 | . . 1 Secondary . | . . . Self-Inflicted Damage . | . . . Shots . | . . . Rammed 9 | . 9 . Targets Rammed 10 | . 10 . Kicked 1 | . 1 . Crushed . | . . . Highest Temperature 332 | . 332 144 Average Temperature 70 | . 71 59 Received Heat Transfer 597 | . 597 . Effects 2 | . 2 . Energy Bleed 1 | . 1 . Damage (minor) 1 | . 1 . Siege Activations . | . . . Robots Corrupted . | . . . Combat Hostiles . | . . . Parts Fried . | . . . Impact Corruptions . | . . . Robots Melted . | . . . Combat Hostiles . | . . . Parts Melted 9 | . 9 . Heat Transferred 3430 | . 3208 222 Parts Sabotaged . | . . . Parts Stolen . | . . . Parts Stripped . | . . . Power Chain Reactions . | . . . Missiles Intercepted . | . . . Alert | -11 -10 -10 ------- Run | Jun Mat Min Peak Influence 274 | . 274 127 Initial 67 | . . 67 Average 140 | . 146 110 Maximum Alert Level 1 | . 1 . Low Security (%) 81 | . 78 100 Level 1 18 | . 21 . Level 2 . | . . . Level 3 . | . . . Level 4 . | . . . Level 5 . | . . . High Security . | . . . Max Security . | . . . Squads Dispatched 4 | . 4 . Investigation 4 | . 4 . Extermination . | . . . Reinforcement . | . . . Assault . | . . . Garrison . | . . . Intercept . | . . . Searches Triggered . | . . . Construction Impeded . | . . . Haulers Reinforced . | . . . Active Scanning Responses . | . . . Cargo Convoy Interrupts . | . . . Stealth | -11 -10 -10 --------- Run | Jun Mat Min Distress Signals 1 | . 1 . Communications Jammed . | . . . Distress Signals . | . . . Times Spotted 37 | . 26 11 Peak Tracking Total 6 | . 4 6 Tactical Retreats 4 | . 4 . Traps | -11 -10 -10 ------- Run | Jun Mat Min Traps Triggered 5 | . 5 . Indirectly . | . . . Trap Hack Attempts . | . . . Triggered . | . . . Disarmed . | . . . Reprogrammed . | . . . Reused . | . . . Traps Extracted . | . . . Installed . | . . . Triggered . | . . . Machines | -11 -10 -10 ---------- Run | Jun Mat Min Machines Disabled . | . . . Max in Single Turn . | . . . Machines Repaired . | . . . Machines Sabotaged . | . . . Overloaded Fab Kills . | . . . Hacking | -11 -10 -10 --------- Run | Jun Mat Min Machines Accessed 7 | . 6 1 Terminals 4 | . 4 . Fabricators . | . . . Repair Stations . | . . . Recycling Units 2 | . 2 . Scanalyzers . | . . . Garrison Access . | . . . Total Hacks 22 | . 21 1 Successful 15 | . 14 1 Failed 6 | . 6 . Catastrophic 1 | . 1 . Database Lockouts 1 | . 1 . Manual 19 | . 19 . Terminals 13 | . 13 . Fabricators . | . . . Repair Stations . | . . . Recycling Units 8 | . 8 . Scanalyzers . | . . . Garrison Access . | . . . Terminal Hacks 5 | . 4 1 Part Schematic 1 | . 1 . Robot Analysis 2 | . 2 . Open Door 1 | . . 1 Emergency Access Points 1 | . 1 . Fabricator Hacks . | . . . Repair Station Hacks . | . . . Recycling Unit Hacks 2 | . 2 . Report Inventory 2 | . 2 . Scanalyzer . | . . . Garrison Access Hacks . | . . . Unauthorized Hacks 8 | . 8 . Terminals 2 | . 2 . Botnet 2 | . 2 . Fabricators . | . . . Repair Stations . | . . . Recycling Units 6 | . 6 . Monitor 2 | . 2 . Reject 2 | . 2 . Mask 2 | . 2 . Scanalyzers . | . . . Garrison Access . | . . . Data Cores Recovered . | . . . Used . | . . . Hacking Detections 5 | . 5 . Full Trace Events 1 | . 1 . Feedback Events . | . . . Feedback Blocked . | . . . Robot Schematics Acquired . | . . . Robots Built . | . . . Authchips . | . . . Time . | . . . Total Robot Build Rating . | . . . Part Schematics Acquired 1 | . 1 . Parts Built . | . . . Authchips . | . . . Time . | . . . Total Part Build Rating . | . . . Parts Repaired . | . . . Time . | . . . Parts Recycled . | . . . Recycled Matter . | . . . Retrieved Matter . | . . . Retrieved Components . | . . . Parts Scanalyzed . | . . . Part Schematics Acquired . | . . . Parts Damaged . | . . . Bothacking | -11 -10 -10 ------------ Run | Jun Mat Min Used RIF Installer . | . . . Robots Hacked . | . . . Non-combat . | . . . Combat . | . . . Robot Hacks Applied . | . . . Relay Couplers Released . | . . . Fabnet Peak Effective % . | . . . Robots Rewired . | . . . Allies Hacked . | . . . Hacks Repelled . | . . . Allies | -11 -10 -10 -------- Run | Jun Mat Min Total Allies . | . . . Largest Group . | . . . Highest-Rated Group . | . . . Highest-Rated Ally . | . . . Total Orders . | . . . Ally Attacks . | . . . Total Damage . | . . . Kills . | . . . Allies Corrupted . | . . . Allies Melted . | . . . Intel | -11 -10 -10 ------- Run | Jun Mat Min Robot Analysis Total 2 | . 2 . Derelict Logs Recovered 1 | . . 1 Drone Launches . | . . . Drone Recoveries . | . . . Exploration | -11 -10 -10 ------------- Run | Jun Mat Min Turns Passed 1826 | . 1555 271 Spaces Moved 1025 | 1 818 206 Core . | . . . Treads 112 | . 112 . Legs 329 | 1 328 . Wheels 584 | . 378 206 Hover . | . . . Flight . | . . . Fastest Speed 115 | 120 115 115 Average Speed 122 | 120 124 115 Slowest Speed 240 | 120 240 145 Overloaded Moves . | . . . Propulsion Burnouts . | . . . Robots Hopped . | . . . Cave-ins Triggered . | . . . Exploration Rate (%) 48 | 2 93 51 Regions Visited 2 Branch Regions 1 Pre-discovered Areas . | . . . Known Exits Taken . | . . . Unknown Exits Taken 2 | 1 1 . Scrap Searched . | . . . Spaces Dug . | . . . Terrain Destroyed . | . . . Melee . | . . . Projectile . | . . . AOE . | . . . Terrain Rammed . | . . . Walls Destroyed . | . . . Machines Disabled . | . . . Actions | -11 -10 -10 --------- Run | Jun Mat Min Total 1398 | . 1178 220 Wait 211 | . 209 2 Move 1023 | . 817 206 Hop . | . . . Pick Up 18 | . 17 1 Fast Attach 6 | . 6 . Attach 5 | . 4 1 Detach 1 | . 1 . Swap 12 | . 11 1 Drop 8 | . 8 . Fire 104 | . 95 9 Melee . | . . . Ram . | . . . Kick 1 | . 1 . Crush 9 | . 9 . Escape Stasis . | . . . Rewire . | . . . Trap . | . . . Miscellaneous . | . . . Route ------- -11/Junkyard -10/Materials (discovered 4 exits: [*Mat x2] / *Min x2) -10/Mines (discovered 1 exit: [*Mat]) History --------- Turn | Location | Event 1 | -11/Junkyard | Discovered new exit (range 0) 1 | -11/Junkyard | Entered Materials 307 | -10/Materials | Build established: Mutant 359 | -10/Materials | Discovered new exit (range 5) 364 | -10/Materials | Discovered new exit (range 13) 611 | -10/Materials | Discovered new exit (range 3) 770 | -10/Materials | Lost 3 parts (1n1u1w) 939 | -10/Materials | Core integrity fell below 50% 1289 | -10/Materials | Discovered new exit (range 11) 1547 | -10/Materials | Central database locked down 1556 | -10/Materials | Entered Mines 1633 | -10/Mines | Core integrity fell below 20% 1738 | -10/Mines | Discovered new exit (range 8) 1798 | -10/Mines | Learned Materials machine intel 1800 | -10/Mines | Assembled infested the area 1808 | -10/Mines | Met a Derelict who couldn't figure out how to use a Trap Extractor 1827 | -10/Mines | Destroyed by D-53 Grenadier with Mini Grenade Launcher Last Messages --------------- something nasty happens..." 01808_ Tosses Imp. Trap Extractor to the ground. 01808_ FC-695(g) triggered Explosive Trap. 01808_ An explosion rips through the floor. 01810_ as-19849 knocked back. 01813_ as-83785 destroyed. 01816_ C-30 ARC bursts open, deploying its payload. 01816_ as-66005 destroyed. 01817_ as-59263 powers down. 01817_ as-53200 powers down. 01817_ as-19849 powers down. 01817_ as-19849 destroyed. 01817_ SHOP.Sys disabled. 01817_ as-53200 destroyed. 01818_ U-05 Engineer builds a Wall. 01819_ Com. Wheel destroyed. 01821_ as-59263 destroyed. 01822_ Acquired Imp. Utility Shielding. 01823_ FC-695(g) destroyed. 01823_ Machine disabled. Map ----- +----------------------------------------------------+ | ???????????????????????????????????# ## ##### "" | | ???????????????????????????????????# ?## ? "" | | ???????????????????????????????????# ??# | | ??????????????????????????????????? ??# #### | | ?????????????????????????????????? ???# #??## | | ?????????????????????????????????? ???# #???## | | ????????????????????????????????? ???# #????## | | ????????????????????????????????##? ????? #?????? | | ????????????????????????????????????????? #?????? | | ????????????????????????????????????????? ?????? | | ????????????????????????????????????????? ?????? | | ????????????????????????????????????????? ??????? | | ?????????????????????????????????????????????????? | | ?????????????????????????????????????????????????? | | ?????????????????????????????????????????????????? | | ?????????????????????????????????????????????????? | | ?????????????????????????????????????????????????? | | ????????????????????????????????????????????#????? | | ????????????????????????????????????????????# ??## | | ????????????????????????????????????????????# ??# | | ?????????????????????????????###????????????# ??# | | ????????????????????????????? ?????????????# ?# | | ????????????????????????????? ?????????????# ?# | | ????????????????????????????? #?????????????# ## | | ??????????????????#########?? ##????????????# | | ??????????????????# " "@#?# ##???????????# | | ??????????????????# ![ =## #???????????#### | | ??????????????????# ! # #??????????????# | | ??????????????????# % = !% #??????????###??# | | ??????????????????#; = #?????????## #?# | | ????????????????? ;# #?????????# ## | | ???????????????# # #?????????# # | | ???????????????# % ##??????????# | | ??????????????# d ##????????#### | | ??????????????# ####??????# | | ??????????????## #??????# ## < | | ???????????????# ###%#??????# ### | | ???????????????# ;###?# #??????# #?#### | | ?????????????? ###???# ######## ####### | | ????????????? ??????# | | ????????????? ### #??????# | | ?????????????? #??####???????################## | | ??????????????#????????????????????????????????## | | ????????????????????????????????????????????????## | | ?????????????????????????????????????????????????? | | ?????????????????????????????????????????????????? | | ?????????????????????????????????????????????????? | | ?????????????????????????????????????????????????? | | ?????????????????????????????????????????????????? | | | +----------------------------------------------------+ Best States ------------- Heat Dissipation 35 Energy Generation 14 Energy Capacity 250 Matter Stores 300 Matter Capacity 300 Sight Range 16 Robot Scan Range 14 Terrain Scan Density 10 Armor Coverage 150 Evasion (%) 55 Recoil Reduction 2 Item Schematics ----------------- Cargo Storage Unit | -10/Materials | Hacked Robot Schematics ------------------ None Fabricated ------------ Nothing Alien Tech Used ----------------- None Achievements -------------- None Challenges ------------ None Game ------ Seed QuantumRecyclingSystem Manual? 0 Play Time 00:16:41 Cumulative 372.8 hours Start 2023.02.24 @ 19:30:47 End 2023.02.24 @ 19:46:14 Sessions 1 Manual Loads 0 Difficulty Rogue Special Mode None Game No. 435 Rogue 435 Adventurer 0 Explorer 0 Win Type - Total 0 Types 0/0/0/0/0/0/0/0/0 Lore% 51 Gallery% 74 Achievement% 61 Wizard Run 0 Options --------- ASCII 0 Keyboard 0 Movement Mouse Keybinds 0 Fullscreen 2 Font 24/Smallcaps Map View 76x50 Tactical HUD 1 Map Filters NONE Filters NONE Steam 1 RUN: 07ec2c54-5454-4d05-bf9b-674ddda3f7d2